bitfinex/quotes_SOLUSD_20241122
["timestamp","ask_amount","ask_price","bid_price","bid_amount"]
[1732285194600,19.07829218,254.83,254.74,19.07829218]
[1732285196004,19.07829218,254.83,254.63,2.5]
[1732285196300,23.776884,254.78,254.69,19.07829218]
[1732285196833,23.776884,254.76,254.67,19.07829218]
[1732285197316,23.776884,254.74,254.65,18.57829218]
[1732285197618,42.85517618,254.74,254.66,19.07829218]
[1732285198021,19.07829218,254.78,254.7,19.07829218]
[1732285198711,19.07829218,254.76,254.68,19.07829218]
[1732285199523,19.07829218,254.86,254.74,19.07829218]
[1732285199715,19.07829218,254.86,254.67,19.07829218]
[1732285199716,19.07829218,254.84,254.77,19.07829218]
[1732285200301,19.07829218,254.88,254.79,19.07829218]
[1732285201014,19.07829218,254.9,254.81,19.07829218]
[1732285201909,19.07829218,254.9,254.72,2.5]
[1732285201910,19.07829218,254.82,254.68,7.076]
[1732285202231,19.07829218,254.79,254.7,19.07829218]
[1732285203328,19.4191,254.79,254.58,2.5]
[1732285203632,19.07829218,254.75,254.65,19.07829218]
[1732285203804,19.07829218,254.73,254.65,19.07829218]
[1732285205831,42.85517618,254.78,254.69,19.07829218]
[1732285206215,19.07829218,254.76,254.67,19.07829218]
[1732285206413,19.07829218,254.74,254.65,19.07829218]
[1732285206711,19.07829218,254.7,254.64,20.0]
[1732285207036,19.07829218,254.72,254.63,19.07829218]
[1732285207233,19.07829218,254.68,254.56,7.6847]
[1732285207403,19.07829218,254.62,254.54,19.07829218]
[1732285208019,19.07829218,254.64,254.56,19.07829218]
[1732285208325,23.776884,254.63,254.56,19.07829218]
[1732285208505,19.07829218,254.62,254.51,15.78175032]
[1732285208706,19.07829218,254.62,254.52,19.07829218]
[1732285208905,23.776884,254.63,254.56,19.07829218]
[1732285209135,19.07829218,254.68,254.58,19.07829218]
[1732285209310,19.07829218,254.68,254.6,19.07829218]
[1732285210414,19.07829218,254.72,254.64,19.07829218]
[1732285211208,19.07829218,254.7,254.62,19.07829218]
[1732285211414,19.07829218,254.68,254.6,19.07829218]
[1732285211813,19.07829218,254.66,254.58,19.07829218]
[1732285212038,19.07829218,254.68,254.6,19.07829218]
[1732285212324,19.07829218,254.72,254.64,19.07829218]
[1732285212531,19.07829218,254.75,254.67,19.07829218]
[1732285213236,19.07829218,254.77,254.69,19.07829218]
[1732285213803,19.07829218,254.79,254.71,19.07829218]
[1732285214424,19.07829218,254.81,254.73,19.07829218]
[1732285214811,19.07829218,254.83,254.75,19.07829218]
[1732285215228,19.07829218,254.81,254.73,19.07829218]
[1732285215527,19.07829218,254.83,254.75,19.07829218]
[1732285216247,19.07829218,254.81,254.73,19.07829218]
[1732285216405,19.07829218,254.77,254.69,19.07829218]
[1732285217242,19.07829218,254.73,254.65,19.07829218]
[1732285217539,19.07829218,254.71,254.65,19.07829218]
[1732285217718,19.07829218,254.67,254.56,19.07829218]
[1732285218038,19.07829218,254.64,254.56,19.07829218]
[1732285218942,19.07829218,254.62,254.54,19.07829218]
[1732285219438,19.07829218,254.64,254.56,19.07829218]
[1732285220731,19.07829218,254.62,254.54,19.07829218]
[1732285221140,19.07829218,254.66,254.58,19.07829218]
[1732285221316,19.07829218,254.68,254.6,19.07829218]
[1732285221517,19.07829218,254.7,254.62,19.07829218]
[1732285221719,19.07829218,254.74,254.66,19.07829218]
[1732285222947,19.07829218,254.7,254.62,19.07829218]
[1732285223327,19.07829218,254.7,254.54,19.07829218]
[1732285223328,19.07829218,254.68,254.58,19.07829218]
[1732285223720,19.07829218,254.66,254.58,19.07829218]
[1732285224337,23.776884,254.74,254.54,7.7454]
[1732285224338,19.07829218,254.64,254.56,19.07829218]
[1732285225123,19.07829218,254.62,254.54,26.82369218]
[1732285225344,19.07829218,254.62,254.54,19.07829218]
[1732285226848,19.07829218,254.68,254.6,19.07829218]
[1732285228439,19.07829218,254.62,254.55,19.07829218]
[1732285228643,19.07829218,254.64,254.55,19.07829218]
[1732285230147,19.07829218,254.6,254.51,19.07829218]
[1732285230527,19.07829218,254.58,254.51,19.07829218]
[1732285231237,19.07829218,254.58,254.4,2.5]
[1732285231238,19.07829218,254.58,254.49,19.07829218]
[1732285231736,19.07829218,254.56,254.47,19.07829218]
[1732285232251,19.07829218,254.56,254.49,19.07829218]
[1732285232746,19.07829218,254.56,254.47,19.07829218]
[1732285233132,19.07829218,254.58,254.49,19.07829218]
[1732285233324,19.07829218,254.64,254.55,19.07829218]
[1732285233525,3.9268,254.66,254.57,19.07829218]
[1732285233526,19.07829218,254.66,254.57,19.07829218]
[1732285233723,19.07829218,254.6,254.41,22.5]
[1732285233923,19.07829218,254.58,254.49,19.07829218]
[1732285234147,19.07829218,254.56,254.49,19.07829218]
[1732285234325,19.07829218,254.58,254.51,19.07829218]
[1732285234737,19.07829218,254.58,254.41,20.0]
[1732285234924,19.07829218,254.58,254.5,19.07829218]
[1732285235323,19.07829218,254.58,254.48,19.07829218]
[1732285235749,19.07829218,254.54,254.46,19.07829218]
[1732285236330,19.07829218,254.54,254.46,18.07829218]
[1732285236535,3.9281,254.58,254.45,19.07829218]
[1732285236536,19.07829218,254.53,254.45,19.07829218]
[1732285237031,19.07829218,254.55,254.47,19.07829218]
[1732285238030,19.07829218,254.53,254.45,19.07829218]
[1732285239345,19.07829218,254.51,254.43,19.07829218]
[1732285240053,19.07829218,254.52,254.45,19.07829218]
[1732285240253,23.31,254.45,254.24,6.1611]
[1732285240437,19.07829218,254.39,254.31,19.07829218]
[1732285240757,19.07829218,254.43,254.35,19.07829218]
[1732285241533,19.07829218,254.47,254.39,19.07829218]
[1732285242030,19.07829218,254.47,254.29,43.776884]
[1732285242230,19.07829218,254.49,254.4,19.07829218]
[1732285242757,19.07829218,254.51,254.44,19.07829218]
[1732285243450,19.07829218,254.49,254.42,19.07829218]
[1732285243966,19.07829218,254.51,254.42,19.07829218]
[1732285244337,19.07829218,254.49,254.42,19.07829218]
[1732285245263,19.07829218,254.47,254.38,19.07829218]
[1732285246353,19.07829218,254.45,254.38,19.07829218]
[1732285247133,23.776884,254.55,254.29,22.5]
[1732285247134,19.07829218,254.49,254.41,19.07829218]
[1732285247336,162.2484,254.56,254.45,19.07829218]
[1732285247337,19.07829218,254.53,254.45,19.07829218]
[1732285247960,19.07829218,254.57,254.49,19.07829218]
[1732285248136,0.89037036,254.56,254.49,19.07829218]
[1732285248859,19.07829218,254.57,254.49,19.07829218]
[1732285249732,19.07829218,254.62,254.53,19.07829218]
[1732285250138,19.07829218,254.64,254.57,19.07829218]
[1732285250347,19.07829218,254.66,254.57,19.07829218]
[1732285250549,19.07829218,254.66,254.59,19.07829218]
[1732285250938,134.8,254.73,254.59,19.07829218]
[1732285251141,19.07829218,254.68,254.59,19.07829218]
[1732285251761,19.07829218,254.66,254.59,19.07829218]
[1732285252044,19.07829218,254.62,254.55,19.07829218]
[1732285252246,19.07829218,254.62,254.53,19.07829218]
[1732285252467,19.07829218,254.64,254.55,19.07829218]
[1732285252960,19.07829218,254.64,254.57,19.07829218]
[1732285253458,19.07829218,254.66,254.57,19.07829218]
[1732285253662,19.07829218,254.68,254.61,19.07829218]
[1732285254158,19.07829218,254.74,254.66,19.07829218]
[1732285255563,19.07829218,254.7,254.62,19.07829218]
[1732285255756,19.07829218,254.7,254.49,6.6209]
[1732285255757,19.07829218,254.68,254.6,19.07829218]
[1732285256859,19.07829218,254.72,254.64,19.07829218]
[1732285257080,19.07829218,254.74,254.66,19.07829218]
[1732285258135,19.07829218,254.72,254.64,19.07829218]
[1732285258356,19.07829218,254.74,254.64,19.07829218]
[1732285258761,19.07829218,254.72,254.62,35.38489218]
[1732285259170,19.07829218,254.68,254.59,19.07829218]
[1732285259765,134.8,254.75,254.59,19.07829218]
[1732285259766,19.07829218,254.66,254.59,19.07829218]
[1732285260466,19.07829218,254.66,254.57,19.07829218]
[1732285260668,19.07829218,254.64,254.55,6.3703]
[1732285260863,19.07829218,254.64,254.56,19.07829218]
[1732285261168,19.07829218,254.6,254.55,6.3703]
[1732285261369,19.07829218,254.6,254.52,19.07829218]
[1732285261561,19.07829218,254.58,254.5,19.07829218]
[1732285261744,19.07829218,254.58,254.49,6.3631]
[1732285261949,19.07829218,254.58,254.5,19.07829218]
[1732285262179,19.07829218,254.62,254.52,19.07829218]
[1732285262469,19.07829218,254.6,254.52,19.07829218]
[1732285263072,19.07829218,254.58,254.49,25.44139218]
[1732285263280,19.07829218,254.54,254.45,19.07829218]
[1732285263454,19.07829218,254.52,254.43,25.11369218]
[1732285265254,19.07829218,254.52,254.45,19.07829218]
[1732285265459,134.8,254.62,254.43,6.0354]
[1732285265460,19.07829218,254.56,254.47,19.07829218]
[1732285265885,19.07829218,254.6,254.51,19.07829218]
[1732285266184,19.07829218,254.6,254.43,6.0354]
[1732285266185,19.07829218,254.6,254.53,19.07829218]
[1732285266554,23.52,254.59,254.53,19.07829218]
[1732285266749,19.07829218,254.62,254.53,19.07829218]
[1732285267568,19.07829218,254.62,254.55,19.07829218]
[1732285267776,19.07829218,254.64,254.55,19.07829218]
[1732285268664,19.07829218,254.66,254.59,19.07829218]
[1732285268867,19.07829218,254.68,254.59,19.07829218]
[1732285269087,19.07829218,254.72,254.63,19.07829218]
[1732285269383,19.07829218,254.76,254.69,19.07829218]
[1732285269686,19.07829218,254.78,254.69,19.07829218]
[1732285270058,19.07829218,254.74,254.65,19.07829218]
[1732285270457,19.07829218,254.76,254.68,19.07829218]
[1732285270786,19.07829218,254.8,254.72,19.07829218]
[1732285270953,19.07829218,254.82,254.76,19.07829218]
[1732285271153,19.07829218,254.84,254.76,19.07829218]
[1732285272881,19.07829218,254.86,254.78,19.07829218]
[1732285273184,19.07829218,254.84,254.76,19.07829218]
[1732285273483,19.07829218,254.88,254.8,19.07829218]
[1732285273784,19.07829218,254.9,254.82,19.07829218]
[1732285273992,19.07829218,254.88,254.8,19.07829218]
[1732285275483,19.07829218,254.92,254.84,19.07829218]
[1732285275779,19.07829218,254.96,254.88,19.07829218]
[1732285276358,134.8,254.99,254.9,19.07829218]
[1732285276359,19.07829218,254.98,254.9,19.07829218]
[1732285276983,19.07829218,255.0,254.92,19.07829218]
[1732285277386,19.07829218,254.98,254.9,25.23659218]
[1732285277585,19.07829218,254.92,254.9,6.1583]
[1732285277768,19.07829218,254.92,254.86,19.07829218]
[1732285278084,19.07829218,254.94,254.86,19.07829218]
[1732285278380,19.07829218,254.92,254.85,6.1583]
[1732285279180,19.07829218,254.87,254.79,25.54479218]
[1732285279387,19.07829218,254.83,254.75,19.07829218]
[1732285279570,19.07829218,254.83,254.72,16.03]
[1732285279571,19.07829218,254.81,254.73,25.54479218]
[1732285279757,23.776884,254.9,254.73,6.4665]
[1732285280084,134.8,254.89,254.73,6.4665]
[1732285280586,134.8,254.92,254.73,8.9665]
[1732285280881,19.07829218,254.86,254.78,19.07829218]
[1732285281082,19.07829218,254.82,254.74,19.07829218]
[1732285281268,19.07829218,254.84,254.74,19.07829218]
[1732285281795,19.07829218,254.8,254.73,6.4665]
[1732285283387,19.07829218,254.8,254.72,19.07829218]
[1732285283762,19.07829218,254.76,254.68,19.07829218]
[1732285284067,19.07829218,254.72,254.65,6.3529]
[1732285284391,19.07829218,254.68,254.59,6.0114]
[1732285284572,19.07829218,254.66,254.59,6.0114]
[1732285284964,19.07829218,254.64,254.59,6.0114]
[1732285285465,19.07829218,254.64,254.54,19.07829218]
[1732285286071,19.07829218,254.64,254.56,19.07829218]
[1732285287085,19.07829218,254.68,254.6,19.07829218]
[1732285288476,19.07829218,254.72,254.64,19.07829218]
[1732285288679,19.07829218,254.74,254.64,19.07829218]
[1732285288989,19.07829218,254.78,254.7,19.07829218]
[1732285291385,19.07829218,254.8,254.72,19.07829218]
[1732285291580,19.07829218,254.85,254.76,19.07829218]
[1732285291989,19.07829218,254.85,254.78,19.07829218]
[1732285292177,19.07829218,254.91,254.82,19.07829218]
[1732285292790,19.07829218,254.93,254.85,19.07829218]
[1732285293494,19.07829218,254.89,254.8,19.07829218]
[1732285293794,19.07829218,254.89,254.82,19.07829218]
[1732285293968,19.07829218,254.91,254.82,19.07829218]
[1732285295487,19.07829218,254.97,254.88,19.07829218]
[1732285295878,19.07829218,254.93,254.86,19.07829218]
[1732285296087,19.07829218,254.93,254.85,6.3161]
[1732285296397,19.07829218,254.91,254.85,6.3161]
[1732285296898,19.07829218,254.95,254.86,19.07829218]
[1732285297493,19.07829218,254.93,254.85,6.3161]
[1732285297880,19.07829218,254.93,254.86,19.07829218]
[1732285298478,19.07829218,254.95,254.86,19.07829218]
[1732285298780,19.07829218,254.97,254.88,19.07829218]
[1732285298981,19.07829218,254.97,254.9,19.07829218]
[1732285299390,19.07829218,254.95,254.86,39.07829218]
[1732285299578,19.07829218,254.93,254.85,6.3161]
[1732285301900,19.07829218,254.95,254.86,19.07829218]
[1732285302121,19.07829218,254.99,254.9,19.07829218]
[1732285302603,19.07829218,255.01,254.92,19.07829218]
[1732285302788,19.07829218,255.03,254.96,19.07829218]
[1732285302983,19.07829218,255.05,254.98,19.07829218]
[1732285303303,19.07829218,255.07,254.98,19.07829218]
[1732285304005,19.07829218,255.07,254.88,2.5]
[1732285304006,19.07829218,255.07,255.0,19.07829218]
[1732285304483,19.07829218,255.05,254.96,19.07829218]
[1732285304897,19.07829218,255.05,254.98,19.07829218]
[1732285305590,134.8,255.14,254.85,10.43082085]
[1732285305591,19.07829218,255.09,255.0,19.07829218]
[1732285305798,19.07829218,255.09,255.02,19.07829218]
[1732285305988,19.07829218,255.11,255.02,19.07829218]
[1732285306685,19.07829218,255.11,255.04,19.07829218]
[1732285307183,153.87829218,255.13,255.04,19.07829218]
[1732285308105,153.87829218,255.13,255.0,6.1892]
[1732285308106,19.07829218,255.13,255.06,19.07829218]
[1732285308485,19.07829218,255.09,255.01,19.07829218]
[1732285309182,19.07829218,255.07,255.0,6.1892]
[1732285309409,19.07829218,255.07,254.99,19.07829218]
[1732285309615,134.8,255.16,255.02,20.0]
[1732285309616,19.07829218,255.09,255.02,20.0]
[1732285309909,19.07829218,255.11,255.02,20.0]
[1732285310208,19.07829218,255.11,255.03,19.07829218]
[1732285311307,19.07829218,255.09,255.01,19.07829218]
[1732285311603,19.07829218,255.07,254.99,19.07829218]
[1732285311807,19.07829218,255.07,254.97,19.07829218]
[1732285311987,19.07829218,255.07,254.99,19.07829218]
[1732285312991,19.07829218,255.03,254.95,19.07829218]
[1732285313208,19.07829218,255.01,254.94,6.1183]
[1732285313892,19.07829218,255.01,254.93,19.07829218]
[1732285314487,153.87829218,255.05,254.96,19.07829218]
[1732285315012,19.07829218,255.05,254.98,19.07829218]
[1732285315699,19.07829218,255.05,254.96,19.07829218]
[1732285316110,19.07829218,255.03,254.94,19.07829218]
[1732285316410,19.07829218,255.01,254.94,19.07829218]
[1732285316997,19.07829218,255.03,254.94,19.07829218]
[1732285318006,19.07829218,255.05,254.96,19.07829218]
[1732285318206,19.07829218,255.07,254.98,19.07829218]
[1732285318389,19.07829218,255.09,255.0,19.07829218]
[1732285318590,19.07829218,255.07,255.0,19.07829218]
[1732285318810,19.07829218,255.09,255.0,19.07829218]
[1732285319020,19.07829218,255.11,255.02,19.07829218]
[1732285319207,134.8,255.12,255.04,19.07829218]
[1732285319517,19.07829218,255.11,255.04,19.07829218]
[1732285320602,22.99819218,255.11,255.02,20.0]
[1732285321101,19.07829218,255.07,254.97,19.07829218]
[1732285321414,19.07829218,255.09,255.01,19.07829218]
[1732285321723,134.8,255.1,255.05,19.07829218]
[1732285321898,22.99799218,255.13,255.03,19.07829218]
[1732285322094,19.07829218,255.1,255.03,19.07829218]
[1732285322299,19.07829218,255.1,255.02,20.0]
[1732285322714,19.07829218,255.08,254.99,19.07829218]
[1732285323023,19.07829218,255.06,254.97,19.07829218]
[1732285324620,19.07829218,255.08,254.99,19.07829218]
[1732285324915,19.07829218,255.03,254.91,20.0]
[1732285325122,19.07829218,254.99,254.91,19.07829218]
[1732285325326,19.07829218,254.97,254.89,19.07829218]
[1732285325497,19.07829218,254.95,254.85,19.07829218]
[1732285325697,19.07829218,254.93,254.85,19.07829218]
[1732285325900,19.07829218,254.91,254.83,19.07829218]
[1732285326397,158.32,255.0,254.79,24.72961043]
[1732285326398,19.07829218,254.87,254.79,24.72961043]
[1732285326602,19.07829218,254.87,254.77,19.07829218]
[1732285326802,19.07829218,254.87,254.79,19.07829218]
[1732285327900,134.8,254.88,254.81,19.07829218]
[1732285328107,134.8,254.88,254.83,19.07829218]
[1732285328404,19.07829218,254.91,254.83,19.07829218]
[1732285328609,19.07829218,254.89,254.81,19.07829218]
[1732285328809,19.07829218,254.89,254.8,20.0]
[1732285329020,19.07829218,254.87,254.77,19.07829218]
[1732285329224,19.07829218,254.85,254.74,6.0503]
[1732285329410,19.07829218,254.85,254.76,19.07829218]
[1732285330430,19.07829218,254.83,254.74,19.07829218]
[1732285330726,19.07829218,254.81,254.73,20.0]
[1732285330930,19.07829218,254.81,254.72,19.07829218]
[1732285331616,134.8,254.83,254.76,19.07829218]
[1732285332204,19.07829218,254.83,254.74,19.07829218]
[1732285332613,19.07829218,254.87,254.79,19.07829218]
[1732285333025,153.87829218,254.89,254.79,19.07829218]
[1732285333212,134.8,254.91,254.83,19.07829218]
[1732285334109,19.07829218,254.91,254.83,19.07829218]
[1732285334313,19.07829218,254.89,254.81,19.07829218]
[1732285335021,153.87829218,254.92,254.83,19.07829218]
[1732285335730,19.07829218,254.9,254.81,19.07829218]
[1732285336227,19.07829218,254.86,254.77,19.07829218]
[1732285336917,134.8,254.85,254.77,19.07829218]
[1732285338012,134.8,254.85,254.79,19.07829218]
[1732285338727,134.8,254.92,254.83,19.07829218]
[1732285338935,19.07829218,254.96,254.89,19.07829218]
[1732285339312,19.07829218,254.96,254.87,19.07829218]
[1732285339923,19.07829218,254.92,254.84,20.0]
[1732285340140,19.07829218,254.9,254.81,19.07829218]
[1732285340324,19.07829218,254.9,254.82,20.0]
[1732285340635,19.07829218,254.92,254.83,19.07829218]
[1732285340934,23.00109218,254.92,254.83,19.07829218]
[1732285341131,19.07829218,254.94,254.86,19.07829218]
[1732285341633,134.8,254.95,254.88,19.07829218]
[1732285341813,19.07829218,255.0,254.9,19.07829218]
[1732285342011,19.07829218,255.0,254.92,19.07829218]
[1732285342722,19.07829218,254.98,254.9,19.07829218]
[1732285343026,19.07829218,254.96,254.89,20.0]
[1732285344133,19.07829218,254.98,254.89,20.0]
[1732285344532,19.07829218,254.98,254.9,19.07829218]
[1732285344917,153.87829218,255.01,254.92,19.07829218]
[1732285345118,19.07829218,255.01,254.92,19.07829218]
[1732285345430,19.07829218,254.99,254.9,19.07829218]
[1732285345742,19.07829218,254.99,254.91,20.0]
[1732285346237,19.07829218,254.95,254.87,20.0]
[1732285346416,19.07829218,254.93,254.87,20.0]
[1732285346937,19.07829218,254.93,254.84,19.07829218]
[1732285347142,19.07829218,254.93,254.85,20.0]
[1732285347819,134.8,255.02,254.82,25.44429218]
[1732285347820,19.07829218,254.89,254.82,25.44429218]
[1732285348017,19.07829218,254.89,254.82,6.366]
[1732285348619,19.07829218,254.91,254.82,25.44429218]
[1732285349923,23.776884,254.9,254.82,6.366]
[1732285350237,19.07829218,254.89,254.81,20.0]
[1732285350616,153.87829218,254.89,254.8,19.07829218]
[1732285350828,19.07829218,254.87,254.78,19.07829218]
[1732285351031,19.07829218,254.87,254.8,19.07829218]
[1732285351236,19.07829218,254.85,254.7,6.0624]
[1732285351437,19.07829218,254.82,254.73,19.07829218]
[1732285351610,19.07829218,254.82,254.71,19.07829218]
[1732285351814,19.07829218,254.82,254.73,19.07829218]
[1732285352122,23.00299218,254.8,254.71,19.07829218]
[1732285352325,19.07829218,254.8,254.71,19.07829218]
[1732285352536,153.87829218,254.84,254.75,19.07829218]
[1732285354028,157.80229218,254.84,254.75,19.07829218]
[1732285354223,153.87829218,254.84,254.75,19.07829218]
[1732285355237,19.07829218,254.84,254.75,19.07829218]
[1732285356428,23.00239218,254.84,254.75,19.07829218]
[1732285356815,19.07829218,254.82,254.73,19.07829218]
[1732285357216,3.9241,254.84,254.71,39.07829218]
[1732285357217,19.07829218,254.8,254.71,39.07829218]
[1732285358220,19.07829218,254.82,254.73,19.07829218]
[1732285358718,134.8,254.83,254.77,19.07829218]
[1732285358918,19.07829218,254.86,254.77,19.07829218]
[1732285359434,23.776884,254.77,254.54,2.5]
[1732285359642,19.07829218,254.67,254.58,19.07829218]
[1732285360324,19.07829218,254.69,254.6,19.07829218]
[1732285360727,19.07829218,254.71,254.62,19.07829218]
[1732285361131,19.07829218,254.73,254.64,19.07829218]
[1732285365450,19.07829218,254.77,254.68,19.07829218]
[1732285365664,19.07829218,254.77,254.7,19.07829218]
[1732285365946,19.07829218,254.79,254.7,19.07829218]
[1732285366355,19.07829218,254.77,254.7,19.07829218]
[1732285366930,19.07829218,254.77,254.69,20.0]
[1732285367458,19.07829218,254.84,254.76,19.07829218]
[1732285367634,19.07829218,254.86,254.79,19.07829218]
[1732285367957,19.07829218,254.88,254.79,19.07829218]
[1732285368152,19.07829218,254.86,254.77,19.07829218]
[1732285368851,19.07829218,254.86,254.79,19.07829218]
[1732285369051,19.07829218,254.82,254.74,19.07829218]
[1732285369550,19.07829218,254.82,254.76,19.07829218]
[1732285369731,19.07829218,254.84,254.76,19.07829218]
[1732285369932,19.07829218,254.86,254.78,19.07829218]
[1732285371440,23.00199218,254.86,254.78,19.07829218]
[1732285371865,19.07829218,254.84,254.76,19.07829218]
[1732285373053,19.07829218,254.86,254.78,19.07829218]
[1732285374681,19.07829218,254.86,254.76,19.07829218]
[1732285375550,19.07829218,254.84,254.76,19.07829218]
[1732285376171,19.07829218,254.86,254.76,19.07829218]
[1732285377379,23.00199218,254.86,254.76,19.07829218]
[1732285379655,19.07829218,254.84,254.76,19.07829218]
[1732285379861,19.07829218,254.82,254.74,19.07829218]
[1732285380054,19.07829218,254.82,254.75,20.0]
[1732285380261,19.07829218,254.86,254.76,19.07829218]
[1732285380456,19.07829218,254.88,254.78,19.07829218]
[1732285380659,11.99085005,254.88,254.79,11.99085005]
[1732285381061,11.99085005,254.88,254.81,11.99085005]
[1732285381855,11.99085005,254.88,254.79,11.99085005]
[1732285382064,11.99085005,254.86,254.76,11.99085005]
[1732285382375,11.99085005,254.9,254.82,11.99085005]
[1732285382572,11.99085005,254.92,254.84,11.99085005]
[1732285383271,11.99085005,254.92,254.85,20.0]
[1732285383677,146.79085005,255.0,254.91,11.99085005]
[1732285383864,11.99085005,255.0,254.91,11.99085005]
[1732285384052,11.99085005,255.0,254.92,20.0]
[1732285385576,134.8,255.04,254.86,6.6589]
[1732285385577,11.99085005,254.95,254.87,20.0]
[1732285385878,11.99085005,254.95,254.87,31.99085005]
[1732285386376,11.99085005,254.95,254.87,11.99085005]
[1732285386873,3.922,254.97,254.87,11.99085005]
[1732285386874,11.99085005,254.97,254.87,11.99085005]
[1732285387074,11.99085005,254.95,254.87,11.99085005]
[1732285388578,11.99085005,254.89,254.81,11.99085005]
[1732285389569,15.91405005,254.89,254.81,11.99085005]
[1732285390777,19.18243148,254.89,254.81,19.18243148]
[1732285392079,23.10573148,254.89,254.81,19.18243148]
[1732285392261,19.18243148,254.87,254.79,19.18243148]
[1732285392462,19.18243148,254.82,254.74,19.18243148]
[1732285392793,19.18243148,254.8,254.72,19.18243148]
[1732285392961,19.18243148,254.78,254.7,19.18243148]
[1732285395266,19.18243148,254.8,254.72,19.18243148]
[1732285395468,3.9238,254.85,254.71,19.18243148]
[1732285395677,19.18243148,254.78,254.71,19.18243148]
[1732285395978,19.18243148,254.79,254.72,19.18243148]
[1732285396559,23.776884,254.78,254.58,26.95170814]
[1732285396761,19.18243148,254.73,254.65,19.18243148]
[1732285397087,134.8,254.76,254.71,19.18243148]
[1732285397267,19.18243148,254.79,254.71,19.18243148]
[1732285398378,157.90703148,254.8,254.72,19.18243148]
[1732285398576,157.90703148,254.8,254.63,23.776884]
[1732285398577,19.18243148,254.82,254.66,20.0]
[1732285398883,19.18243148,254.8,254.72,19.18243148]
[1732285399184,19.18243148,254.85,254.77,19.18243148]
[1732285399376,19.18243148,254.83,254.76,19.18243148]
[1732285400072,19.18243148,254.82,254.75,19.18243148]
[1732285400380,19.18243148,254.82,254.74,19.18243148]
[1732285400687,19.18243148,254.84,254.76,19.18243148]
[1732285401571,19.18243148,254.8,254.72,19.18243148]
[1732285402374,23.10713148,254.8,254.72,19.18243148]
[1732285403463,19.18243148,254.78,254.7,19.18243148]
[1732285405264,19.18243148,254.74,254.53,2.5]
[1732285405558,19.18243148,254.74,254.64,19.18243148]
[1732285406187,19.18243148,254.72,254.64,19.18243148]
[1732285407280,134.8,254.74,254.68,19.18243148]
[1732285407672,134.8,254.74,254.7,19.18243148]
[1732285407864,19.18243148,254.78,254.7,19.18243148]
[1732285408265,23.10733148,254.78,254.7,19.18243148]
[1732285408679,19.18243148,254.76,254.68,19.18243148]
[1732285412782,12.00016241,254.79,254.71,12.00016241]
[1732285412983,134.8,254.82,254.75,12.00016241]
[1732285413177,12.00016241,254.83,254.75,12.00016241]
[1732285413799,12.00016241,254.79,254.64,2.5]
[1732285414000,12.00016241,254.79,254.71,12.00016241]
[1732285414292,12.00016241,254.79,254.63,2.5]
[1732285414293,12.00016241,254.77,254.69,12.00016241]
[1732285414501,12.00016241,254.77,254.7,20.0]
[1732285415999,12.00016241,254.77,254.69,12.00016241]
[1732285416183,12.00016241,254.77,254.68,20.0]
[1732285416504,12.00016241,254.75,254.67,12.00016241]
[1732285416674,12.00016241,254.75,254.65,12.00016241]
[1732285416876,12.00016241,254.72,254.63,12.00016241]
[1732285417292,12.00016241,254.68,254.59,22.0066]
[1732285417504,12.00016241,254.68,254.59,18.10156241]
[1732285417681,12.00016241,254.7,254.62,12.00016241]
[1732285418380,146.80016241,254.72,254.62,12.00016241]
[1732285418577,146.80016241,254.72,254.64,12.00016241]
[1732285418880,146.80016241,254.72,254.68,12.00016241]
[1732285418881,134.8,254.72,254.68,12.00016241]
[1732285419084,12.00016241,254.76,254.66,12.00016241]
[1732285419301,12.00016241,254.74,254.59,6.1014]
[1732285419595,3.9251,254.77,254.61,12.00016241]
[1732285419596,12.00016241,254.69,254.61,12.00016241]
[1732285419801,12.00016241,254.71,254.61,12.00016241]
[1732285419980,15.92626241,254.71,254.63,12.00016241]
[1732285420179,12.00016241,254.71,254.63,12.00016241]
[1732285420379,15.92616241,254.71,254.63,12.00016241]
[1732285420807,15.92616241,254.71,254.61,12.00016241]
[1732285421601,12.00016241,254.71,254.63,12.00016241]
[1732285422601,12.00016241,254.73,254.65,12.00016241]
[1732285423400,12.00016241,254.73,254.57,23.776884]
[1732285423401,12.00016241,254.71,254.63,12.00016241]
[1732285425594,12.00016241,254.69,254.61,12.00016241]
[1732285425803,12.00016241,254.71,254.63,12.00016241]
[1732285427807,15.92616241,254.71,254.63,12.00016241]
[1732285428308,12.00016241,254.71,254.63,12.00016241]
[1732285430009,12.00016241,254.7,254.62,12.00016241]
[1732285430305,12.00016241,254.71,254.63,12.00016241]
[1732285430804,146.80016241,254.73,254.65,12.00016241]
[1732285431811,12.00016241,254.72,254.65,12.00016241]
[1732285432116,12.00016241,254.72,254.64,12.00016241]
[1732285434695,7.68316133,254.72,254.64,7.68316133]
[1732285434894,7.68316133,254.71,254.63,7.68316133]
[1732285435101,134.8,254.79,254.63,7.68316133]
[1732285435412,7.68316133,254.76,254.68,7.68316133]